bitfinex-derivatives/quotes_SOLF0:USTF0_20251125
["timestamp","ask_amount","ask_price","bid_price","bid_amount"]
[1764057867228,0.05532786,136.19,136.18,2.89]
[1764057867914,0.05532786,136.19,136.17,2.91337431]
[1764057869625,2.94532786,136.19,136.17,2.91337431]
[1764057869811,0.05532786,136.19,136.17,2.91337431]
[1764057873829,2.89,136.18,136.17,0.02337431]
[1764057875131,8.21777337,136.18,136.17,0.02337431]
[1764057875723,5.32777337,136.18,136.17,0.02337431]
[1764057876123,8.21777337,136.18,136.17,0.02337431]
[1764057877131,2.89,136.18,136.17,0.02337431]
[1764057877327,8.22267742,136.18,136.17,0.02337431]
[1764057880438,13.69178267,136.18,136.17,0.02337431]
[1764057880635,5.33267742,136.18,136.17,2.91337431]
[1764057880935,0.05532786,136.19,136.17,2.91337431]
[1764057881834,2.94532786,136.19,136.17,0.02337431]
[1764057882131,8.22962157,136.18,136.17,0.02337431]
[1764057882635,5.33962157,136.18,136.17,0.02337431]
[1764057884624,10.81562133,136.18,136.17,0.02337431]
[1764057885740,5.33962157,136.18,136.17,0.02337431]
[1764057891438,5.33962157,136.18,136.17,3.00337431]
[1764057891647,0.05532786,136.19,136.17,9.61467431]
[1764057891836,0.05532786,136.19,136.18,2.98]
[1764057892035,10.87881733,136.19,136.18,2.98]
[1764057892233,10.87881733,136.19,136.17,6.63467431]
[1764057892432,0.05532786,136.19,136.17,9.61467431]
[1764057892741,3.02532786,136.19,136.17,0.02337431]
[1764057892939,5.34560565,136.18,136.17,3.00337431]
[1764057893434,2.79983424,136.18,136.17,3.00337431]
[1764057893633,0.05532786,136.19,136.17,3.00337431]
[1764057893838,2.97,136.23,136.17,3.00337431]
[1764057894036,5.47800983,136.22,136.17,3.00337431]
[1764057894235,5.47800983,136.21,136.17,3.00337431]
[1764057894542,2.97,136.23,136.17,3.00337431]
[1764057894739,3.02643353,136.21,136.17,3.00337431]
[1764057894932,5.47716451,136.2,136.17,3.00337431]
[1764057895131,3.02643353,136.21,136.17,3.00337431]
[1764057895333,2.97,136.19,136.17,0.02337431]
[1764057895739,5.15253914,136.21,136.17,3.00337431]
[1764057896044,8.44624368,136.2,136.17,3.00337431]
[1764057896234,2.97,136.2,136.17,3.00337431]
[1764057896433,0.05643353,136.21,136.18,2.98]
[1764057896629,5.47625873,136.2,136.18,2.98]
[1764057896826,3.08643353,136.21,136.18,2.98]
[1764057897030,5.47625873,136.2,136.18,2.98]
[1764057897226,3.08643353,136.21,136.18,2.98]
[1764057897431,5.47631289,136.2,136.18,2.98]
[1764057897637,3.08643353,136.21,136.18,2.98]
[1764057897837,8.50631289,136.2,136.18,2.98]
[1764057898038,3.03,136.2,136.18,2.98]
[1764057900540,3.08643353,136.21,136.18,6.6109]
[1764057900751,5.47602044,136.2,136.18,9.7309]
[1764057900952,3.08643353,136.21,136.18,9.7309]
[1764057901136,3.08643353,136.21,136.17,0.02337431]
[1764057901137,0.05643353,136.21,136.2,3.12]
[1764057901335,5.53323576,136.21,136.2,3.12]
[1764057901739,3.03,136.2,136.17,3.14337431]
[1764057902630,0.05643353,136.21,136.18,3.12]
[1764057902631,3.08643353,136.21,136.18,3.12]
[1764057902831,8.50708613,136.2,136.18,3.12]
[1764057903044,3.03,136.2,136.18,3.12]
[1764057903546,3.08643353,136.21,136.18,9.7311]
[1764057903746,5.47301796,136.2,136.18,9.7311]
[1764057903936,3.08643353,136.21,136.18,9.7311]
[1764057904642,8.48867665,136.2,136.17,3.14337431]
[1764057904837,3.03,136.2,136.17,3.14337431]
[1764057905043,3.08643353,136.21,136.17,3.14337431]
[1764057905235,5.45923203,136.2,136.18,3.12]
[1764057905435,0.05643353,136.21,136.18,3.12]
[1764057905641,5.29117489,136.2,136.18,3.12]
[1764057905843,0.05643353,136.21,136.18,9.731]
[1764057906050,0.05643353,136.21,136.19,3.12]
[1764057907541,3.08643353,136.21,136.19,3.12]
[1764057907737,0.05643353,136.21,136.19,3.12]
[1764057907941,9.7698422,136.28,136.24,3.12]
[1764057908244,10.752285,136.27,136.24,3.12]
[1764057908440,6.7398422,136.3,136.24,3.12]
[1764057908441,9.7698422,136.3,136.27,3.12]
[1764057908643,10.74142519,136.29,136.27,3.12]
[1764057908846,5.28592337,136.28,136.27,3.12]
[1764057909041,0.05500379,136.29,136.27,3.17534355]
[1764057909645,5.27979568,136.32,136.3,3.12]
[1764057909856,3.03,136.33,136.3,5.24610561]
[1764057910050,3.03,136.35,136.31,3.12]
[1764057910249,8.31019983,136.34,136.31,3.12]
[1764057910446,3.03,136.34,136.31,3.12]
[1764057910645,3.07871378,136.34,136.31,3.17483009]
[1764057912850,3.07871378,136.34,136.31,0.05483009]
[1764057913651,9.68231378,136.34,136.31,0.05483009]
[1764057913851,3.03,136.33,136.31,0.05483009]
[1764057914852,0.04871378,136.34,136.31,3.17483009]
[1764057915051,0.04871378,136.34,136.33,3.12]
[1764057915355,3.03,136.38,136.33,9.7237]
[1764057916242,3.07909038,136.37,136.34,0.04903794]
[1764057918655,3.07909038,136.37,136.34,3.13903794]
[1764057919655,3.07909038,136.37,136.34,0.04903794]
[1764057923358,3.02,136.36,136.34,0.04903794]
[1764057923662,5.14610561,136.35,136.34,0.04903794]
[1764057923861,3.02,136.34,136.29,3.09]
[1764057924861,3.02,136.32,136.3,0.0562691]
[1764057926064,0.05383938,136.33,136.3,0.0562691]
[1764057926266,3.07383938,136.33,136.3,0.0562691]
[1764057926455,3.07383938,136.33,136.3,3.1462691]
[1764057929172,3.07383938,136.33,136.3,0.0562691]
[1764057930372,3.07383938,136.33,136.3,3.1462691]
[1764057931871,0.05383938,136.33,136.3,3.1462691]
[1764057932870,0.05383938,136.33,136.32,3.09]
[1764057933175,3.02,136.42,136.33,3.09]
[1764057933380,3.02,136.41,136.35,3.09]
[1764057934081,0.05460243,136.39,136.38,3.09]
[1764057934282,3.02,136.42,136.38,3.09]
[1764057934576,3.02,136.44,136.38,3.09]
[1764057934967,9.6179,136.46,136.4,3.09]
[1764057935375,3.06850805,136.44,136.42,0.05536137]
[1764057937585,3.06850805,136.44,136.33,3.09]
[1764057937586,3.02,136.41,136.33,3.09]
[1764057938581,3.02,136.41,136.3,102.7466]
[1764057938582,3.06866515,136.38,136.36,0.0497973]
[1764057940679,3.06866515,136.38,136.29,156.0459]
[1764057940876,3.02,136.38,136.29,131.0459]
[1764057941089,3.02,136.38,136.3,3.09]
[1764057941586,0.05286731,136.35,136.33,0.05377017]
[1764057941783,0.05286731,136.35,136.33,3.14377017]
[1764057941991,0.05286731,136.35,136.33,0.05377017]
[1764057943589,3.07286731,136.35,136.33,0.05377017]
[1764057944880,0.05286731,136.35,136.33,3.14377017]
[1764057945291,10.63670637,136.41,136.33,3.14377017]
[1764057945292,3.02,136.41,136.33,3.14377017]
[1764057946180,3.06865588,136.38,136.33,3.14377017]
[1764057946382,3.06865588,136.38,136.34,0.05324677]
[1764057947383,9.67025588,136.38,136.34,0.05324677]
[1764057947580,3.2,136.37,136.34,0.05324677]
[1764057951087,3.2,136.36,136.34,0.05324677]
[1764057951498,13.8935517,136.35,136.34,0.05324677]
[1764057958095,3.2,136.35,136.34,0.05324677]
[1764057958294,2.95,136.36,136.34,0.05324677]
[1764057958507,8.37353534,136.37,136.34,3.17324677]
[1764057958699,2.95,136.37,136.34,3.17324677]
[1764057959403,2.95,136.37,136.34,0.05324677]
[1764057960098,2.95,136.36,136.34,0.05324677]
[1764057962203,5.29831774,136.37,136.35,3.12]
[1764057962398,0.04865588,136.38,136.35,3.12]
[1764057962599,2.99865588,136.38,136.35,3.12]
[1764057962801,2.99865588,136.38,136.35,9.7227]
[1764057963796,2.99865588,136.38,136.34,3.17324677]
[1764057965101,2.99865588,136.38,136.34,9.77664677]
[1764057967302,2.99865588,136.38,136.35,3.12]
[1764057968307,0.04865588,136.38,136.35,3.12]
[1764057968606,0.04865588,136.38,136.37,3.12]
[1764057969601,6.7398422,136.45,136.39,3.12]
[1764057969602,10.72584459,136.43,136.39,3.12]
[1764057969812,2.95,136.43,136.36,3.12]
[1764057970103,8.38107115,136.43,136.37,3.12]
[1764057970500,0.05222937,136.41,136.39,0.052941]
[1764057970701,0.05222937,136.41,136.39,3.172941]
[1764057973101,0.05222937,136.41,136.39,9.773741]
[1764057973304,0.05222937,136.41,136.4,3.12]
[1764057975103,20.22599966,136.46,136.42,3.12]
[1764057975308,2.95,136.45,136.42,3.12]
[1764057976202,3.00379844,136.45,136.42,3.16836716]
[1764057976605,0.05379844,136.45,136.42,3.16836716]
[1764057977915,2.94379844,136.45,136.42,0.04836716]
[1764057978308,2.94379844,136.45,136.42,2.93836716]
[1764057978510,2.89,136.46,136.42,2.93836716]
[1764057979405,0.04902575,136.45,136.42,2.93836716]
[1764057979606,0.04902575,136.45,136.42,9.53776716]
[1764057979906,0.04902575,136.45,136.43,2.89]
[1764057980310,0.04902575,136.45,136.43,9.4889]
[1764057980617,9.4853,136.51,136.45,2.89]
[1764057980618,13.55444054,136.51,136.45,2.89]
[1764057980805,2.89,136.51,136.45,2.89]
[1764057981200,2.89,136.51,136.46,2.89]
[1764057981608,0.04851818,136.5,136.47,2.93653509]
[1764057983212,2.93851818,136.5,136.47,0.04653509]
[1764057985712,2.93851818,136.5,136.47,2.93653509]
[1764057986113,0.04851818,136.5,136.47,2.93653509]
[1764057986420,0.04851818,136.5,136.49,2.89]
[1764057986920,0.04851818,136.5,136.47,2.93653509]
[1764057988020,0.04851818,136.5,136.49,2.89]
[1764057990410,0.04851818,136.5,136.47,2.93653509]
[1764057991117,0.04851818,136.5,136.48,9.4865]
[1764057991823,0.04851818,136.5,136.49,2.89]
[1764057993824,2.89,136.53,136.49,9.486]
[1764057994022,2.89,136.53,136.5,2.89]
[1764057994221,2.89,136.55,136.52,2.89]
[1764057994421,2.89,136.57,136.52,2.89]
[1764057994816,2.94455394,136.56,136.53,6.64128235]
[1764057995925,0.05455394,136.56,136.53,9.53128235]
[1764057996219,0.05455394,136.56,136.54,2.89]
[1764057996825,2.94455394,136.56,136.53,9.53128235]
[1764057997024,2.94455394,136.56,136.53,2.93718235]
[1764057997620,2.94455394,136.56,136.53,0.04718235]
[1764057998324,2.89,136.54,136.53,0.04718235]
[1764057998527,5.00584072,136.54,136.53,0.04718235]
[1764057998724,2.89,136.53,136.47,2.89]
[1764057999026,2.89,136.57,136.5,2.89]
[1764057999620,0.05206691,136.55,136.52,0.05503397]
[1764057999821,0.05206691,136.55,136.52,2.94503397]
[1764058000821,0.05206691,136.55,136.53,2.89]
[1764058001022,0.05206691,136.55,136.53,5.00584072]
[1764058002524,2.94206691,136.55,136.52,0.05503397]
[1764058003030,2.94206691,136.55,136.52,2.94503397]
[1764058004632,0.05206691,136.55,136.52,2.94503397]
[1764058005630,0.05206691,136.55,136.54,2.89]
[1764058006445,2.89,136.6,136.57,2.89]
[1764058006623,2.89,136.6,136.54,5.00584072]
[1764058007128,2.89,136.6,136.55,3.05]
[1764058007532,3.02864749,136.59,136.56,0.05164922]
[1764058008029,3.02864749,136.59,136.56,3.10164922]
[1764058008627,3.02864749,136.59,136.56,0.05164922]
[1764058009630,3.02864749,136.59,136.5,2.11584072]
[1764058009631,2.98,136.57,136.48,5.16584072]
[1764058009836,2.98,136.52,136.45,3.05]
[1764058010022,5.09584072,136.51,136.45,3.05]
[1764058010732,3.02709478,136.49,136.47,0.05512647]
[1764058018122,0.04709478,136.49,136.47,3.14512647]
[1764058018923,0.04709478,136.49,136.47,0.05512647]
[1764058019129,3.21709478,136.49,136.47,0.05512647]
[1764058021527,0.04709478,136.49,136.47,0.05512647]
[1764058021934,0.04709478,136.49,136.47,3.14512647]
[1764058022435,3.17,136.52,136.47,3.14512647]
[1764058022741,3.17,136.54,136.51,3.09]
[1764058023427,3.17,136.54,136.48,9.6862]
[1764058023626,3.21679652,136.54,136.45,3.09]
[1764058023828,3.22294808,136.51,136.5,0.05367362]
[1764058025331,3.17,136.49,136.45,3.09]
[1764058025534,3.17,136.49,136.42,3.09]
[1764058026036,3.17,136.49,136.43,3.09]
[1764058026241,3.17,136.52,136.44,3.09]
[1764058026439,0.0524784,136.49,136.47,0.05502239]
[1764058027736,0.0524784,136.49,136.47,3.14502239]
[1764058028936,0.0524784,136.49,136.47,9.74202239]
[1764058029247,0.0524784,136.49,136.48,3.09]
[1764058030444,10.6155644,136.56,136.52,3.09]
[1764058030737,3.17,136.55,136.52,3.09]
[1764058030942,3.17,136.55,136.49,6.5958]
[1764058031143,3.17,136.54,136.49,6.5958]
[1764058031342,3.22541213,136.53,136.5,3.13705612]
[1764058031840,3.22541213,136.53,136.5,0.04705612]
[1764058032240,3.17,136.52,136.5,0.04705612]
[1764058032747,0.05541213,136.53,136.5,3.13705612]
[1764058032932,3.22541213,136.53,136.5,3.13705612]
[1764058033442,3.22541213,136.53,136.5,0.04705612]
[1764058033645,8.42998277,136.53,136.5,0.04705612]
[1764058033846,3.17,136.52,136.5,0.04705612]
[1764058034048,3.17,136.51,136.5,0.04705612]
[1764058035646,3.17,136.52,136.5,0.04705612]
[1764058036744,0.05541213,136.53,136.5,3.13705612]
[1764058037450,0.05541213,136.53,136.52,2.92]
[1764058038248,9.7823,136.57,136.53,2.92]
[1764058038948,3.19,136.57,136.53,9.5141]
[1764058039141,0.04642595,136.56,136.54,2.96813905]
[1764058039334,0.04642595,136.56,136.54,0.04813905]
[1764058039541,3.23642595,136.56,136.54,0.04813905]
[1764058041242,9.82932595,136.56,136.54,0.04813905]
[1764058041442,3.19,136.55,136.54,0.04813905]
[1764058043950,6.63932595,136.56,136.54,0.04813905]
[1764058044449,9.82932595,136.56,136.54,0.04813905]
[1764058046046,3.19,136.55,136.54,0.04813905]
[1764058049049,3.19,136.54,136.49,9.5157]
[1764058049248,3.19,136.54,136.49,2.92]
[1764058050155,3.19,136.54,136.46,102.6267]
[1764058050156,0.05190516,136.53,136.51,2.92]
[1764058053261,3.24190516,136.53,136.5,9.56769763]
[1764058054152,3.24190516,136.53,136.5,0.05209763]
[1764058054656,3.19,136.51,136.5,0.05209763]
[1764058054860,3.19,136.51,136.44,2.92]
[1764058055448,3.19,136.49,136.44,2.92]
[1764058055856,3.24142181,136.48,136.45,0.05011231]
[1764058056360,3.24142181,136.48,136.45,2.97011231]
[1764058057248,3.24142181,136.48,136.45,0.05011231]
[1764058057856,8.65041925,136.48,136.45,0.05011231]
[1764058058053,3.19,136.47,136.45,0.05011231]
[1764058058359,3.19,136.46,136.45,0.05011231]
[1764058059564,3.19,136.45,136.39,2.92]
[1764058060759,3.24390925,136.43,136.41,0.05229049]
[1764058072666,3.18,136.42,136.41,0.05229049]
[1764058079574,3.09,136.4,136.35,3.13]
[1764058080278,9.691,136.39,136.35,3.13]
[1764058080474,9.691,136.39,136.36,0.04896583]
[1764058080771,3.1456699,136.38,136.36,0.04896583]
[1764058080975,3.09,136.37,136.36,0.04896583]
[1764058081182,3.09,136.37,136.31,3.13]
[1764058081572,3.09,136.34,136.3,3.13]
[1764058082074,25.18,136.37,136.31,0.05532085]
[1764058082075,3.14410197,136.33,136.31,0.05532085]
[1764058082280,3.14410197,136.33,136.31,0.05325158]
[1764058082586,3.09,136.3,136.26,3.13]
[1764058082777,3.09,136.3,136.23,3.13]
[1764058083376,9.696,136.29,136.23,3.13]
[1764058083580,3.13897467,136.27,136.25,0.04947195]
[1764058083773,3.13921111,136.27,136.25,0.04947195]
[1764058087579,0.04921111,136.27,136.25,3.17947195]
[1764058088084,3.13921111,136.27,136.25,0.04947195]
[1764058092279,3.09,136.25,136.19,3.13]
[1764058092978,3.09,136.25,136.19,9.7404]
[1764058093178,0.04624966,136.23,136.21,3.18591993]
[1764058093377,3.09,136.28,136.22,3.13]
[1764058094273,0.05305613,136.26,136.24,0.05028837]
[1764058095083,0.05305613,136.26,136.24,3.18028837]
[1764058095980,0.05305613,136.26,136.24,9.78818837]
[1764058096187,0.05305613,136.26,136.25,3.13]
[1764058097390,3.15305613,136.26,136.24,0.05028837]
[1764058098688,3.15305613,136.26,136.2,2.99]
[1764058099678,3.15305613,136.26,136.22,0.05242223]
[1764058101885,3.1,136.24,136.22,0.05242223]
[1764058102890,3.1,136.25,136.22,3.04242223]
[1764058103279,3.1,136.25,136.22,0.05242223]
[1764058105985,3.1,136.24,136.22,0.05242223]
[1764058108496,3.1,136.23,136.22,0.05242223]
[1764058112489,2.12534331,136.24,136.22,0.05242223]
[1764058112684,3.1,136.24,136.22,0.05242223]
[1764058112884,3.1,136.25,136.22,3.04242223]
[1764058113883,3.1,136.25,136.22,0.05242223]
[1764058114085,3.1,136.24,136.22,0.05242223]
[1764058114797,3.1,136.24,136.22,3.04242223]
[1764058114995,3.1,136.25,136.22,3.04242223]
[1764058115388,3.1,136.25,136.22,0.05242223]
[1764058116494,3.1,136.25,136.22,3.04242223]
[1764058120401,8.49027357,136.25,136.22,3.04242223]
[1764058121493,3.1,136.25,136.22,3.04242223]
[1764058122293,5.40219511,136.24,136.22,3.04242223]
[1764058122495,3.1,136.24,136.22,3.04242223]
[1764058124406,5.42077473,136.23,136.22,3.04242223]
[1764058129411,3.15305613,136.26,136.22,3.04242223]
[1764058129607,13.70952904,136.25,136.22,3.04242223]
[1764058129813,5.42808806,136.24,136.22,3.04242223]
[1764058130110,3.1,136.25,136.22,3.04242223]
[1764058130305,5.42772696,136.24,136.22,3.04242223]
[1764058130505,9.7078,136.25,136.22,3.04242223]
[1764058130707,10.61070915,136.24,136.22,3.04242223]
[1764058130909,3.1,136.25,136.22,3.04242223]
[1764058131108,5.42871502,136.24,136.22,3.04242223]
[1764058131310,3.1,136.25,136.22,3.04242223]
[1764058131509,5.42979038,136.24,136.22,3.04242223]
[1764058131710,3.1,136.25,136.22,3.04242223]
[1764058132013,5.42979038,136.24,136.22,3.04242223]
[1764058132209,3.1,136.25,136.22,3.04242223]
[1764058132416,5.43097642,136.24,136.22,3.04242223]
[1764058132613,3.1,136.25,136.22,3.04242223]
[1764058132804,5.43097642,136.24,136.22,3.04242223]
[1764058133008,3.1,136.25,136.22,3.04242223]
[1764058133208,5.43097737,136.24,136.22,3.04242223]
[1764058133415,3.1,136.25,136.22,3.04242223]
[1764058133617,5.4317444,136.24,136.22,3.04242223]
[1764058133915,3.1,136.25,136.22,3.04242223]
[1764058134116,5.42416147,136.24,136.23,2.96]
[1764058134312,0.05305613,136.26,136.23,2.96]
[1764058134511,5.42398028,136.25,136.23,2.96]
[1764058134712,3.15305613,136.26,136.23,2.96]
[1764058135011,5.42398028,136.25,136.23,2.96]
[1764058135213,3.15305613,136.26,136.23,2.96]
[1764058135414,5.4241114,136.25,136.23,2.96]
[1764058135621,3.15305613,136.26,136.23,2.96]
[1764058135815,5.42375002,136.25,136.23,2.96]
[1764058136027,5.42375002,136.25,136.22,0.05242223]
[1764058136028,3.1,136.24,136.22,0.05242223]
[1764058138033,0.05305613,136.26,136.22,3.15242223]
[1764058138334,8.61527535,136.25,136.22,3.15242223]
[1764058138533,3.2,136.25,136.22,3.15242223]
[1764058139033,3.2,136.25,136.23,3.1]
[1764058139328,3.25305613,136.26,136.23,3.1]
[1764058139532,8.61579473,136.25,136.23,3.1]
[1764058139719,3.2,136.25,136.23,3.1]
[1764058139918,5.41647109,136.24,136.23,3.1]
[1764058140121,5.41647109,136.24,136.23,9.7087]
[1764058140321,5.41647109,136.24,136.23,3.1]
[1764058140524,5.41647109,136.24,136.22,3.15242223]
[1764058140720,3.2,136.25,136.22,3.15242223]
[1764058140924,5.41734837,136.24,136.22,3.15242223]
[1764058141132,3.2,136.25,136.22,9.76142223]
[1764058141429,5.41885087,136.24,136.22,9.76142223]
[1764058141632,3.2,136.25,136.22,9.76142223]
[1764058141826,5.41891871,136.24,136.22,9.76142223]
[1764058142026,3.2,136.25,136.22,9.76142223]
[1764058142227,5.41923448,136.24,136.22,9.76142223]
[1764058142435,3.2,136.25,136.22,9.76142223]
[1764058142634,5.41983553,136.24,136.22,9.76142223]
[1764058142834,3.2,136.25,136.22,9.76142223]
[1764058143130,3.2,136.23,136.22,6.66142223]
[1764058143334,3.2,136.25,136.22,0.05242223]
[1764058143532,3.2,136.23,136.22,0.05242223]
[1764058143939,8.61865064,136.23,136.22,0.05242223]
[1764058147034,3.2,136.2,136.15,3.1]
[1764058147241,3.2,136.2,136.12,3.1]
[1764058148137,0.052261,136.17,136.15,3.14914675]
[1764058149539,0.052261,136.17,136.15,9.76164675]
[1764058149739,0.052261,136.17,136.16,3.1]
[1764058150137,0.052261,136.17,136.15,3.14914675]
[1764058152439,0.052261,136.17,136.16,3.1]
[1764058153651,0.052261,136.17,136.15,3.14914675]
[1764058155446,0.052261,136.17,136.16,3.1]
[1764058158834,5.08534331,136.23,136.18,6.6111]
[1764058159041,5.08534331,136.23,136.19,3.0]
[1764058159042,2.96,136.23,136.19,3.0]
[1764058159237,2.96,136.25,136.19,3.0]
[1764058159643,2.96,136.25,136.22,3.0]
[1764058159950,3.01250384,136.25,136.22,3.05633372]
[1764058160847,0.05250384,136.25,136.22,3.05633372]
[1764058161155,0.05250384,136.25,136.24,3.0]
[1764058162750,11.98730544,136.3,136.24,3.0]
[1764058162952,6.606,136.29,136.24,3.0]
[1764058163148,9.566,136.29,136.24,3.0]
[1764058163748,0.05478714,136.28,136.26,3.0]
[1764058167443,3.01478714,136.28,136.25,9.65969937]
[1764058168457,0.05478714,136.28,136.26,3.0]
[1764058168661,0.05478714,136.28,136.27,3.0]
[1764058170556,5.38049355,136.33,136.28,3.0]
[1764058170763,8.34049355,136.35,136.28,3.0]
[1764058171057,5.38049355,136.34,136.28,3.0]
[1764058171356,2.96,136.35,136.3,3.0]
[1764058171555,3.00708649,136.34,136.31,0.04654886]
[1764058171956,3.00708649,136.34,136.31,3.04654886]
[1764058172159,0.04708649,136.34,136.31,3.04654886]
[1764058172746,3.00708649,136.34,136.31,3.04654886]
[1764058175058,0.04708649,136.34,136.31,3.04654886]
[1764058177061,3.00708649,136.34,136.31,3.04654886]
[1764058177262,0.04708649,136.34,136.31,3.04654886]
[1764058179562,0.04708649,136.34,136.31,9.65134886]
[1764058179761,0.04708649,136.34,136.32,3.0]
[1764058181261,0.04708649,136.34,136.32,9.6043]
[1764058181468,0.04708649,136.34,136.33,3.0]
[1764058184166,9.5617,136.38,136.34,3.0]
[1764058184365,6.6008,136.4,136.34,3.0]
[1764058184662,2.96,136.43,136.37,3.0]
[1764058184869,2.96,136.46,136.37,3.0]
[1764058185267,0.04713258,136.43,136.4,3.05612977]
[1764058185464,0.04713258,136.43,136.4,0.05612977]
[1764058185465,3.00713258,136.43,136.4,0.05612977]
[1764058186070,3.00713258,136.43,136.4,3.05612977]
[1764058186269,3.00713258,136.43,136.4,0.05612977]
[1764058186464,3.00713258,136.43,136.4,3.05612977]
[1764058187673,3.05,136.41,136.4,0.05612977]
[1764058188369,6.5997,136.42,136.4,0.05612977]
[1764058188370,9.6497,136.42,136.4,0.05612977]
[1764058188666,0.04713258,136.43,136.4,3.12612977]
[1764058188871,0.04713258,136.43,136.41,3.07]
[1764058193774,3.05,136.48,136.42,3.07]
[1764058194682,3.05,136.48,136.41,3.07]
[1764058194883,3.09738163,136.46,136.43,3.12146844]
[1764058195178,3.05,136.44,136.43,0.05146844]
[1764058196479,3.05,136.43,136.39,3.07]
[1764058196881,3.05,136.43,136.36,3.07]
[1764058197480,3.01464949,136.41,136.38,0.04767617]
[1764058198875,9.61484949,136.41,136.38,0.04767617]
[1764058199078,3.01464949,136.41,136.38,0.04767617]
[1764058199485,3.01464949,136.41,136.38,3.23767617]
[1764058199486,0.05464949,136.41,136.38,3.23767617]
[1764058201290,0.05464949,136.41,136.38,9.83907617]
[1764058201496,0.05464949,136.41,136.38,3.23767617]
[1764058203096,2.96,136.49,136.4,3.19]
[1764058203396,2.96,136.48,136.4,3.19]
[1764058203988,0.04725539,136.45,136.43,3.24511547]
[1764058207395,3.00725539,136.45,136.43,0.05511547]
[1764058207789,9.60545539,136.45,136.43,0.05511547]
[1764058208105,2.96,136.44,136.43,0.05511547]
[1764058210288,8.28123336,136.44,136.43,0.05511547]
[1764058210894,2.96,136.42,136.36,6.6023]
[1764058211095,2.96,136.42,136.36,3.19]
[1764058211600,2.96,136.4,136.36,3.19]
[1764058211890,2.96,136.4,136.37,0.04937754]
[1764058212096,3.01151879,136.39,136.37,0.04937754]
[1764058213886,9.61261879,136.39,136.37,0.04937754]
[1764058214100,2.96,136.38,136.37,0.04937754]
[1764058214796,5.37275215,136.39,136.37,0.04937754]
[1764058214993,0.05151879,136.39,136.37,0.04937754]
[1764058215188,8.33275215,136.39,136.37,0.04937754]
[1764058215399,2.96,136.38,136.37,0.04937754]
[1764058215899,2.96,136.32,136.27,3.19]
[1764058216303,2.96,136.32,136.22,3.19]
[1764058216500,9.5651,136.31,136.24,3.19]
[1764058216699,2.96,136.3,136.24,3.19]
[1764058216908,2.97,136.27,136.26,0.05044865]
[1764058218099,2.97,136.27,136.21,3.15]
[1764058218294,2.97,136.3,136.22,3.15]
[1764058218700,5.3500762,136.32,136.24,3.15]
[1764058219005,0.05459289,136.29,136.27,0.04664085]
[1764058219504,3.02459289,136.29,136.27,0.04664085]
[1764058222597,0.05459289,136.29,136.27,3.19664085]
[1764058227502,3.02459289,136.29,136.27,0.04664085]
[1764058228498,2.97,136.28,136.21,3.15]
[1764058229509,3.02365525,136.26,136.23,0.04727057]
[1764058230004,3.02365525,136.26,136.23,3.19727057]
[1764058230005,0.05365525,136.26,136.23,3.19727057]
[1764058231408,3.02365525,136.26,136.23,0.04727057]
[1764058231807,2.97,136.25,136.23,0.04727057]
[1764058232008,2.97,136.24,136.23,0.04727057]
[1764058232202,2.97,136.24,136.17,3.15]
[1764058233010,6.609,136.23,136.17,3.15]
[1764058233202,0.04626705,136.21,136.19,0.05558856]
[1764058233408,0.04626705,136.21,136.19,3.20558856]
[1764058238507,2.97,136.27,136.19,3.20558856]
[1764058238714,2.97,136.27,136.2,3.15]
[1764058239117,2.97,136.27,136.21,6.6095]
[1764058239415,2.97,136.27,136.22,3.15]
[1764058239624,0.04856718,136.25,136.23,3.2041491]
[1764058239921,2.97,136.24,136.23,0.0541491]
[1764058240613,0.04856718,136.25,136.23,3.2041491]
[1764058242727,3.01856718,136.25,136.23,0.0541491]
[1764058244121,9.62646718,136.25,136.23,0.0541491]
[1764058244315,2.97,136.24,136.23,0.0541491]
[1764058247116,3.21856718,136.25,136.23,0.0541491]